fUSD/lending_fUSD_20250916
["ID","MTS","AMOUNT","RATE_DAILY","PERIOD"]
[385842343,1758059469133,-1090.0,0.00030849,2]
[385842344,1758059469142,-168.0,0.00030851,2]
[385842345,1758059469151,-1111.31,0.00030852,2]
[385842346,1758059469160,-8023.33187067,0.00030858,2]
[385842347,1758059469170,-151.0,0.00030872,4]
[385842348,1758059469190,-354071.626749,0.00030882,2]
[385842349,1758059469199,-156.11368437,0.000309,2]
[385842350,1758059469208,-156.11368437,0.000309,2]
[385842351,1758059469218,-1700.0,0.000309,11]
[385842352,1758059469227,-150.0,0.00030904,7]
[385842353,1758059469237,-172.86331008,0.00030904,7]
[385842354,1758059469246,-150.0,0.00030904,7]
[385842355,1758059469257,-150.0,0.00030904,7]
[385842356,1758059469266,-150.0,0.00030904,7]
[385842357,1758059469276,-152.63198766,0.00030904,7]
[385842358,1758059469286,-153.79133665,0.00030904,7]
[385842359,1758059469295,-150.0,0.00030904,7]
[385842360,1758059469305,-150.0,0.00030904,7]
[385842361,1758059469315,-161.75674978,0.00030904,7]
[385842362,1758059469325,-40912.11208476,0.00030907,2]
[385842363,1758059469334,-2058.39,0.00030919,6]
[385842364,1758059469343,-400.0,0.00030919,6]
[385842365,1758059469353,-412.53,0.00030919,6]
[385842366,1758059469363,-618.61,0.00030919,6]
[385842367,1758059469372,-1651.68,0.00030919,6]
[385842368,1758059469382,-2717.2,0.00030919,6]
[385842369,1758059469397,-400.0,0.00030919,6]
[385842370,1758059469406,-400.0,0.00030919,6]
[385842371,1758059469415,-462.71,0.00030919,6]
[385842372,1758059469425,-400.0,0.00030919,6]
[385842373,1758059469435,-400.0,0.00030919,6]
[385842374,1758059469446,-400.0,0.00030919,6]
[385842375,1758059469456,-400.0,0.00030919,6]
[385842376,1758059469467,-400.0,0.00030919,6]
[385842377,1758059469476,-400.0,0.00030919,6]
[385842378,1758059469486,-3231.76,0.00030919,6]
[385842379,1758059469495,-400.0,0.00030919,6]
[385842380,1758059469504,-436.89,0.00030919,6]
[385842381,1758059469514,-400.0,0.00030919,6]
[385842382,1758059469523,-211.62,0.00030952,2]
[385842383,1758059469532,-485.67,0.00030956,6]
[385842384,1758059469542,-400.0,0.00030956,6]
[385842385,1758059469551,-467.8,0.00030956,6]
[385842386,1758059469561,-400.0,0.00030956,6]
[385842387,1758059469571,-400.0,0.00030957,6]
[385842388,1758059469580,-404.97,0.00030957,6]
[385842389,1758059469589,-431.58,0.00030957,6]
[385842390,1758059469599,-564.94,0.00030957,6]
[385842391,1758059469608,-400.0,0.00030957,6]
[385842392,1758059469618,-475.93,0.00030957,6]
[385842393,1758059469627,-646.81,0.00030957,6]
[385842394,1758059469637,-400.0,0.00030957,6]
[385842395,1758059469646,-400.0,0.00030957,6]
[385842396,1758059469655,-400.0,0.00030957,6]
[385842397,1758059469664,-503.49,0.00030957,6]
[385842398,1758059469673,-555.18,0.00030957,6]
[385842399,1758059469683,-493.67,0.00030957,6]
[385842400,1758059469692,-406.48,0.00030957,6]
[385842401,1758059469701,-400.0,0.00030957,6]
[385842402,1758059469710,-472.57,0.00030957,6]
[385842403,1758059469719,-566.4,0.00030957,6]
[385842404,1758059469729,-443.11,0.00030957,6]
[385842405,1758059469738,-400.0,0.00030957,6]
[385842406,1758059469747,-556.41,0.00030957,6]
[385842407,1758059469756,-642.62,0.00030957,6]
[385842408,1758059469765,-526.48,0.00030957,6]
[385842409,1758059469774,-638.73,0.00030957,6]
[385842410,1758059469783,-400.0,0.00030957,6]
[385842411,1758059469792,-400.0,0.00030957,6]
[385842412,1758059469801,-400.0,0.00030957,6]
[385842413,1758059469811,-514.99,0.00030957,6]
[385842414,1758059469819,-477.56,0.00030957,6]
[385842415,1758059469847,-400.0,0.00030957,6]
[385842416,1758059469864,-400.0,0.00030957,6]
[385842417,1758059469886,-824.84,0.00030957,6]
[385842418,1758059469908,-558.91,0.00030957,6]
[385842419,1758059469925,-429.04,0.00030957,6]
[385842420,1758059469943,-771.88,0.00030957,6]
[385842421,1758059469962,-400.0,0.00030957,6]
[385842422,1758059469981,-456.11,0.00030957,6]
[385842423,1758059470001,-400.0,0.00030957,6]
[385842424,1758059470018,-422.65,0.00030957,6]
[385842425,1758059470042,-400.0,0.00030957,6]
[385842426,1758059470058,-400.0,0.00030957,6]
[385842427,1758059470074,-400.0,0.00030957,6]
[385842428,1758059470093,-400.0,0.00030957,6]
[385842429,1758059470109,-400.0,0.00030957,6]
[385842430,1758059470127,-682.71,0.00030957,6]
[385842431,1758059470143,-1411.58,0.00030957,6]
[385842432,1758059470159,-1000.0,0.00030957,6]
[385842433,1758059470174,-876.88,0.00030957,6]
[385842434,1758059470190,-308.43763188,0.00030957,6]
[385842435,1758059470206,-590.13,0.00030957,6]
[385842436,1758059470222,-500.0,0.00030957,6]
[385842437,1758059470237,-684.03,0.00030957,2]
[385842438,1758059470256,-400.0,0.00030957,6]
[385842439,1758059470272,-590.27,0.00030957,6]
[385842440,1758059470287,-400.0,0.00030958,6]
[385842441,1758059470301,-400.0,0.00030958,6]
[385842442,1758059470317,-400.0,0.00030958,6]
[385842443,1758059470334,-400.0,0.00030958,6]
[385842444,1758059470350,-400.0,0.00030958,6]
[385842445,1758059470364,-400.0,0.00030958,6]
[385842446,1758059470381,-180.39260738,0.00030958,6]
[385842447,1758059470399,-400.0,0.00030958,6]
[385842448,1758059470413,-400.0,0.00030958,6]
[385842449,1758059470429,-400.0,0.00030958,6]
[385842450,1758059470443,-400.0,0.00030958,6]
[385842451,1758059470458,-223.84101309,0.00030958,6]
[385842452,1758059470474,-400.0,0.00030958,6]
[385842453,1758059470488,-400.0,0.00030958,6]
[385842454,1758059470502,-400.0,0.00030958,6]
[385842455,1758059470517,-400.0,0.00030958,6]
[385842456,1758059470532,-400.0,0.00030958,6]
[385842457,1758059470547,-400.0,0.00030958,6]
[385842458,1758059470561,-400.0,0.00030958,6]
[385842459,1758059470576,-400.0,0.00030958,6]
[385842460,1758059470590,-400.0,0.00030958,6]
[385842461,1758059470604,-400.0,0.00030958,6]
[385842462,1758059470618,-400.0,0.00030958,6]
[385842463,1758059470632,-400.0,0.00030958,6]
[385842464,1758059470647,-400.0,0.00030958,6]
[385842465,1758059470661,-400.0,0.00030958,6]
[385842466,1758059470675,-400.0,0.00030958,6]
[385842467,1758059470688,-400.0,0.00030958,6]
[385842468,1758059470706,-405.19224311,0.00030958,6]
[385842469,1758059470720,-400.0,0.00030958,6]
[385842470,1758059470735,-400.0,0.00030958,6]
[385842471,1758059470748,-400.0,0.00030958,6]
[385842472,1758059470763,-400.0,0.00030958,6]
[385842473,1758059470777,-400.0,0.00030958,6]
[385842474,1758059470791,-400.0,0.00030958,6]
[385842475,1758059470806,-400.0,0.00030958,6]
[385842476,1758059470819,-400.0,0.00030958,6]
[385842477,1758059470834,-400.0,0.00030958,6]
[385842478,1758059470849,-400.0,0.00030958,6]
[385842479,1758059470862,-408.49289247,0.00030958,6]
[385842480,1758059470876,-400.0,0.00030958,6]
[385842481,1758059470891,-400.0,0.00030958,6]
[385842482,1758059470905,-404.33862389,0.00030958,6]
[385842483,1758059470918,-446.83,0.00030958,6]
[385842484,1758059470933,-400.0,0.00030958,6]
[385842485,1758059470947,-400.0,0.00030958,6]
[385842486,1758059470961,-400.0,0.00030958,6]
[385842487,1758059470975,-400.0,0.00030958,6]
[385842488,1758059470988,-400.0,0.00030958,6]
[385842489,1758059471002,-400.0,0.00030958,6]
[385842490,1758059471016,-400.0,0.00030958,6]
[385842491,1758059471030,-406.30283152,0.00030958,6]
[385842492,1758059471043,-313.28192378,0.00030958,6]
[385842493,1758059471057,-400.0,0.00030958,6]
[385842494,1758059471070,-400.0,0.00030958,6]
[385842495,1758059471085,-400.0,0.00030958,6]
[385842496,1758059471098,-400.0,0.00030958,6]
[385842497,1758059471111,-400.0,0.00030958,6]
[385842498,1758059471125,-400.0,0.00030958,6]
[385842499,1758059471139,-400.0,0.00030958,6]
[385842500,1758059471152,-198.13911931,0.00030958,6]
[385842501,1758059471167,-400.0,0.00030958,6]
[385842502,1758059471180,-547.28,0.00030958,6]
[385842503,1758059471194,-400.0,0.00030958,6]
[385842504,1758059471207,-400.0,0.00030958,6]
[385842505,1758059471221,-404.68176592,0.00030958,6]
[385842506,1758059471234,-400.0,0.00030958,6]
[385842507,1758059471248,-400.0,0.00030958,6]
[385842508,1758059471261,-400.0,0.00030958,6]
[385842509,1758059471275,-400.0,0.00030958,6]
[385842510,1758059471289,-551.48497543,0.00030958,14]
[385842511,1758059471302,-400.0,0.00030958,6]
[385842512,1758059471316,-400.0,0.00030958,6]
[385842513,1758059471330,-400.0,0.00030958,6]
[385842514,1758059471345,-400.0,0.00030958,6]
[385842515,1758059471360,-400.0,0.00030958,6]
[385842516,1758059471374,-400.0,0.00030958,6]
[385842517,1758059471390,-400.0,0.00030958,6]
[385842518,1758059471403,-400.0,0.00030958,6]
[385842519,1758059471418,-400.0,0.00030958,6]
[385842520,1758059471433,-400.0,0.00030958,6]
[385842521,1758059471444,-400.0,0.00030958,6]
[385842522,1758059471453,-400.0,0.00030958,6]
[385842523,1758059471465,-400.0,0.00030958,6]
[385842524,1758059471476,-400.0,0.00030958,6]
[385842525,1758059471733,-411.3310202,0.00030958,6]
[385842526,1758059471751,-400.0,0.00030958,6]
[385842527,1758059471760,-400.0,0.00030958,6]
[385842528,1758059471769,-400.0,0.00030958,6]
[385842529,1758059471778,-400.0,0.00030958,6]
[385842530,1758059471788,-400.0,0.00030958,6]
[385842531,1758059471797,-400.0,0.00030958,6]
[385842532,1758059471806,-417.64908609,0.00030958,6]
[385842533,1758059471815,-404.16,0.00030958,6]
[385842534,1758059471824,-400.0,0.00030958,6]
[385842535,1758059471834,-400.0,0.00030958,6]
[385842536,1758059471843,-400.0,0.00030958,6]
[385842537,1758059471852,-528.17,0.00030958,6]
[385842538,1758059471861,-400.0,0.00030958,6]
[385842539,1758059471870,-542.9,0.00030958,6]
[385842540,1758059471879,-400.0,0.00030958,6]
[385842541,1758059471888,-400.0,0.00030958,6]
[385842542,1758059471897,-400.0,0.00030958,6]
[385842543,1758059471907,-400.0,0.00030958,6]
[385842544,1758059471915,-400.0,0.00030958,6]
[385842545,1758059471924,-400.0,0.00030958,6]
[385842546,1758059471934,-400.0,0.00030958,6]
[385842547,1758059471942,-400.0,0.00030958,6]
[385842548,1758059471951,-333.19099495,0.00030958,6]
[385842549,1758059471960,-400.0,0.00030958,6]
[385842550,1758059471969,-400.0,0.00030958,6]
[385842551,1758059471978,-400.0,0.00030958,6]
[385842552,1758059471987,-400.0,0.00030958,6]
[385842553,1758059471996,-343.61213831,0.00030958,6]
[385842554,1758059472005,-400.0,0.00030958,6]
[385842555,1758059472015,-854.5,0.00030958,6]
[385842556,1758059472024,-400.0,0.00030958,6]
[385842557,1758059472033,-403.43,0.00030958,6]
[385842558,1758059472042,-400.0,0.00030958,6]
[385842559,1758059472051,-400.0,0.00030958,6]
[385842560,1758059472060,-400.0,0.00030958,6]
[385842561,1758059472069,-400.0,0.00030958,6]
[385842562,1758059472078,-400.0,0.00030958,6]
[385842563,1758059472087,-400.0,0.00030958,6]
[385842564,1758059472096,-400.0,0.00030958,6]
[385842565,1758059472104,-400.0,0.00030958,6]
[385842566,1758059472114,-400.0,0.00030958,6]
[385842567,1758059472122,-400.0,0.00030958,6]
[385842568,1758059472131,-400.0,0.00030958,6]
[385842569,1758059472140,-400.0,0.00030958,6]
[385842570,1758059472149,-400.0,0.00030958,6]
[385842571,1758059472158,-400.0,0.00030958,6]
[385842572,1758059472167,-400.0,0.00030958,6]
[385842573,1758059472176,-400.0,0.00030958,6]
[385842574,1758059472186,-400.0,0.00030958,6]
[385842575,1758059472195,-400.0,0.00030958,6]
[385842576,1758059472203,-400.0,0.00030958,6]
[385842577,1758059472212,-400.0,0.00030958,6]
[385842578,1758059472221,-400.0,0.00030958,6]
[385842579,1758059472231,-400.0,0.00030958,6]
[385842580,1758059472241,-500.53431886,0.00030958,6]
[385842581,1758059472250,-400.0,0.00030958,6]
[385842582,1758059472259,-400.0,0.00030958,6]
[385842583,1758059472268,-425.79,0.00030958,6]
[385842584,1758059472278,-400.0,0.00030958,6]
[385842585,1758059472287,-440.62,0.00030958,6]
[385842586,1758059472297,-400.0,0.00030958,6]
[385842587,1758059472306,-400.0,0.00030958,6]
[385842588,1758059472315,-400.0,0.00030958,6]
[385842589,1758059472324,-400.0,0.00030958,6]
[385842590,1758059472333,-627.06,0.00030958,6]
[385842591,1758059472343,-400.0,0.00030958,6]
[385842592,1758059472352,-400.0,0.00030958,6]
[385842593,1758059472362,-400.0,0.00030958,6]
[385842594,1758059472371,-413.83307602,0.00030958,6]
[385842595,1758059472380,-404.88,0.00030958,6]
[385842596,1758059472392,-400.0,0.00030958,6]
[385842597,1758059472401,-400.0,0.00030958,6]
[385842598,1758059472410,-400.0,0.00030958,6]
[385842599,1758059472419,-597.91,0.00030958,6]
[385842600,1758059472428,-400.0,0.00030958,6]
[385842601,1758059472438,-400.0,0.00030958,6]
[385842602,1758059472447,-550.75,0.00030958,6]
[385842603,1758059472457,-482.27,0.00030958,6]
[385842604,1758059472466,-400.0,0.00030958,6]
[385842605,1758059472476,-400.0,0.00030958,6]
[385842606,1758059472485,-400.0,0.00030958,6]
[385842607,1758059472494,-400.0,0.00030958,6]
[385842608,1758059472503,-526.82461062,0.00030958,6]
[385842609,1758059472513,-400.0,0.00030958,6]
[385842610,1758059472522,-489.33,0.00030958,6]
[385842611,1758059472531,-400.0,0.00030958,6]
[385842612,1758059472540,-400.0,0.00030958,6]
[385842613,1758059472550,-400.0,0.00030958,6]
[385842614,1758059472559,-400.44,0.00030958,6]
[385842615,1758059472568,-400.0,0.00030958,6]
[385842616,1758059472577,-432.89,0.00030958,6]
[385842617,1758059472586,-1630.47,0.00030958,6]
[385842618,1758059472595,-400.0,0.00030958,6]
[385842619,1758059472604,-400.0,0.00030958,6]
[385842620,1758059472613,-400.0,0.00030958,6]
[385842621,1758059472623,-400.0,0.00030958,6]
[385842622,1758059472632,-194.38364116,0.00030958,6]
[385842623,1758059472641,-316.68421478,0.00030958,6]
[385842624,1758059472650,-400.0,0.00030958,6]
[385842625,1758059472659,-464.0,0.00030958,6]
[385842626,1758059472668,-400.0,0.00030958,6]
[385842627,1758059472678,-541.51,0.00030958,6]
[385842628,1758059472687,-400.0,0.00030958,6]
[385842629,1758059472696,-400.0,0.00030958,6]
[385842630,1758059472705,-400.0,0.00030958,6]
[385842631,1758059472715,-400.0,0.00030958,6]
[385842632,1758059472724,-406.86033301,0.00030958,6]
[385842633,1758059472733,-400.0,0.00030958,6]
[385842634,1758059472742,-400.0,0.00030958,6]
[385842635,1758059472751,-431.13,0.00030958,6]
[385842636,1758059472761,-666.3,0.00030958,6]
[385842637,1758059472770,-400.0,0.00030958,6]
[385842638,1758059472779,-400.0,0.00030958,6]
[385842639,1758059472788,-408.54223665,0.00030958,6]
[385842640,1758059472797,-400.0,0.00030958,6]
[385842641,1758059472806,-400.0,0.00030958,6]
[385842642,1758059472815,-400.0,0.00030958,6]
[385842643,1758059472824,-410.0327082,0.00030958,6]
[385842644,1758059472833,-547.93,0.00030958,6]
[385842645,1758059472841,-400.0,0.00030958,6]
[385842646,1758059472850,-400.0,0.00030958,6]
[385842647,1758059472859,-400.0,0.00030958,6]
[385842648,1758059472867,-474.55,0.00030958,6]
[385842649,1758059472876,-681.13,0.00030958,6]
[385842650,1758059472885,-445.76,0.00030958,6]
[385842651,1758059472894,-400.0,0.00030958,6]
[385842652,1758059472903,-400.0,0.00030958,6]
[385842653,1758059472912,-520.69,0.00030958,6]
[385842654,1758059472921,-400.0,0.00030958,6]
[385842655,1758059472930,-402.9,0.00030958,6]
[385842656,1758059472939,-400.0,0.00030958,6]
[385842657,1758059472948,-400.0,0.00030958,6]
[385842658,1758059472957,-400.0,0.00030958,6]
[385842659,1758059472966,-400.0,0.00030958,6]
[385842660,1758059472975,-400.0,0.00030958,6]
[385842661,1758059472984,-400.0,0.00030958,6]
[385842662,1758059472993,-400.0,0.00030958,6]
[385842663,1758059473001,-400.0,0.00030958,6]
[385842664,1758059473010,-400.0,0.00030958,6]
[385842665,1758059473019,-520.75,0.00030958,6]
[385842666,1758059473028,-438.72,0.00030958,6]
[385842667,1758059473037,-930.22,0.00030958,6]
[385842668,1758059473046,-400.0,0.00030958,6]
[385842669,1758059473055,-400.0,0.00030958,6]
[385842670,1758059473065,-400.0,0.00030958,6]
[385842671,1758059473073,-691.69,0.00030958,6]
[385842672,1758059473083,-541.46,0.00030958,6]
[385842673,1758059473092,-400.0,0.00030958,6]
[385842674,1758059473101,-400.0,0.00030958,6]
[385842675,1758059473110,-400.0,0.00030958,6]
[385842676,1758059473119,-400.0,0.00030958,6]
[385842677,1758059473128,-400.0,0.00030958,6]
[385842678,1758059473138,-400.0,0.00030958,6]
[385842679,1758059473147,-840.93,0.00030958,6]
[385842680,1758059473156,-400.0,0.00030958,6]
[385842681,1758059473165,-400.0,0.00030958,6]
[385842682,1758059473174,-345.63917748,0.00030958,6]
[385842683,1758059473184,-400.0,0.00030958,6]
[385842684,1758059473193,-379.53682671,0.00030958,6]
[385842685,1758059473202,-400.0,0.00030958,6]
[385842686,1758059473211,-531.61,0.00030958,6]
[385842687,1758059473220,-400.0,0.00030958,6]
[385842688,1758059473230,-400.0,0.00030958,6]
[385842689,1758059473239,-400.0,0.00030958,6]
[385842690,1758059473248,-400.0,0.00030958,6]
[385842691,1758059473257,-400.0,0.00030958,6]
[385842692,1758059473266,-400.0,0.00030958,6]
[385842693,1758059473275,-528.41,0.00030958,6]
[385842694,1758059473284,-400.0,0.00030958,6]
[385842695,1758059473293,-3105.74,0.00030958,6]
[385842696,1758059473302,-400.0,0.00030958,6]
[385842697,1758059473311,-593.33,0.00030958,6]
[385842698,1758059473320,-400.0,0.00030958,6]
[385842699,1758059473329,-400.0,0.00030958,6]
[385842700,1758059473338,-400.0,0.00030958,6]
[385842701,1758059473347,-530.57,0.00030958,6]
[385842702,1758059473356,-400.0,0.00030958,6]
[385842703,1758059473366,-400.0,0.00030958,6]
[385842704,1758059473374,-801.13,0.00030958,6]
[385842705,1758059473385,-400.0,0.00030958,6]
[385842706,1758059473398,-400.0,0.00030958,6]
[385842707,1758059473406,-344.19240839,0.00030958,6]
[385842708,1758059473416,-249.96103011,0.00030958,6]
[385842709,1758059473424,-400.0,0.00030958,6]
[385842710,1758059473434,-400.0,0.00030958,6]
[385842711,1758059473443,-400.0,0.00030958,6]
[385842712,1758059473452,-400.0,0.00030958,6]
[385842713,1758059473460,-400.0,0.00030958,6]
[385842714,1758059473471,-400.0,0.00030958,6]
[385842715,1758059473480,-400.0,0.00030958,6]
[385842716,1758059473489,-720.72,0.00030958,6]
[385842717,1758059473498,-400.0,0.00030958,6]
[385842718,1758059473507,-400.0,0.00030958,6]
[385842719,1758059473515,-400.0,0.00030958,6]
[385842720,1758059473524,-400.0,0.00030958,6]
[385842721,1758059473533,-450.36,0.00030958,6]
[385842722,1758059473543,-400.0,0.00030958,6]
[385842723,1758059473552,-400.0,0.00030958,6]
[385842724,1758059473562,-400.0,0.00030958,6]
[385842725,1758059473571,-400.0,0.00030958,6]
[385842726,1758059473581,-400.0,0.00030958,6]
[385842727,1758059473590,-400.0,0.00030958,6]
[385842728,1758059473599,-400.0,0.00030958,6]
[385842729,1758059473609,-400.0,0.00030958,6]
[385842730,1758059473618,-400.0,0.00030958,6]
[385842731,1758059473627,-400.0,0.00030958,6]
[385842732,1758059473637,-400.0,0.00030958,6]
[385842733,1758059473646,-313.58,0.00030958,6]
[385842734,1758059473655,-400.0,0.00030958,6]
[385842735,1758059473664,-400.0,0.00030958,6]
[385842736,1758059473673,-400.0,0.00030958,6]
[385842737,1758059473682,-400.0,0.00030958,6]
[385842738,1758059473691,-400.0,0.00030958,6]
[385842739,1758059473700,-247.68259086,0.00030958,6]
[385842740,1758059473709,-400.0,0.00030958,6]
[385842741,1758059473718,-400.0,0.00030958,6]
[385842742,1758059473727,-455.66,0.00030958,6]
[385842743,1758059473736,-400.0,0.00030958,6]
[385842744,1758059473745,-400.0,0.00030958,6]
[385842745,1758059473755,-298.31199197,0.00030958,6]
[385842746,1758059473764,-400.0,0.00030958,6]
[385842747,1758059473773,-400.0,0.00030958,6]
[385842748,1758059473782,-400.0,0.00030958,6]
[385842749,1758059473792,-400.0,0.00030958,6]
[385842750,1758059473801,-400.0,0.00030958,6]
[385842751,1758059473810,-400.0,0.00030958,6]
[385842752,1758059473819,-452.15,0.00030958,6]
[385842753,1758059473828,-400.0,0.00030958,6]
[385842754,1758059473838,-599.86,0.00030958,6]
[385842755,1758059473847,-1299.74,0.00030958,6]
[385842756,1758059473856,-572.67,0.00030958,6]
[385842757,1758059473865,-400.0,0.00030958,6]
[385842758,1758059473874,-400.0,0.00030958,6]
[385842759,1758059473883,-400.0,0.00030958,6]
[385842760,1758059473893,-422.38,0.00030958,6]
[385842761,1758059473902,-400.0,0.00030958,6]
[385842762,1758059473910,-400.0,0.00030958,6]
[385842763,1758059473919,-400.0,0.00030958,6]
[385842764,1758059473929,-408.03409091,0.00030958,6]
[385842765,1758059473938,-404.16,0.00030958,6]
[385842766,1758059473947,-400.0,0.00030958,6]
[385842767,1758059473957,-400.0,0.00030958,6]
[385842768,1758059473966,-400.0,0.00030958,6]
[385842769,1758059473975,-400.0,0.00030958,6]
[385842770,1758059473984,-400.0,0.00030958,6]
[385842771,1758059473993,-400.0,0.00030958,6]
[385842772,1758059474002,-924.76,0.00030958,6]
[385842773,1758059474012,-400.0,0.00030958,6]
[385842774,1758059474021,-400.0,0.00030958,6]
[385842775,1758059474030,-1289.24,0.00030958,6]
[385842776,1758059474039,-300.0,0.00030958,6]
[385842777,1758059474048,-400.0,0.00030958,6]
[385842778,1758059474057,-400.0,0.00030958,6]
[385842779,1758059474066,-400.0,0.00030958,6]
[385842780,1758059474075,-400.0,0.00030958,6]
[385842781,1758059474084,-400.0,0.00030958,6]
[385842782,1758059474093,-400.0,0.00030958,6]
[385842783,1758059474103,-400.0,0.00030958,6]
[385842784,1758059474112,-400.0,0.00030958,6]
[385842785,1758059474121,-400.0,0.00030958,6]
[385842786,1758059474131,-554.69,0.00030958,6]
[385842787,1758059474140,-400.0,0.00030958,6]
[385842788,1758059474150,-799.13,0.00030958,6]
[385842789,1758059474160,-467.79,0.00030958,6]
[385842790,1758059474169,-943.71,0.00030958,6]
[385842791,1758059474178,-400.0,0.00030958,6]
[385842792,1758059474187,-617.84,0.00030958,6]
[385842793,1758059474196,-400.0,0.00030958,6]
[385842794,1758059474206,-400.0,0.00030958,6]
[385842795,1758059474215,-400.0,0.00030958,6]
[385842796,1758059474224,-562.81,0.00030958,6]
[385842797,1758059474233,-400.0,0.00030958,6]
[385842798,1758059474242,-400.0,0.00030958,6]
[385842799,1758059474251,-1554.92,0.00030958,6]
[385842800,1758059474259,-258.7735274,0.00030958,6]
[385842801,1758059474268,-506.29235853,0.00030958,6]
[385842802,1758059474277,-400.0,0.00030958,6]
[385842803,1758059474286,-472.52,0.00030958,6]
[385842804,1758059474296,-400.0,0.00030958,6]
[385842805,1758059474305,-400.0,0.00030958,6]
[385842806,1758059474314,-400.0,0.00030958,6]
[385842807,1758059474323,-400.0,0.00030958,6]
[385842808,1758059474332,-502.44,0.00030958,6]
[385842809,1758059474341,-2454.26,0.00030958,6]
[385842810,1758059474350,-400.0,0.00030958,6]
[385842811,1758059474359,-400.0,0.00030958,6]
[385842812,1758059474368,-814.45,0.00030958,6]
[385842813,1758059474377,-400.0,0.00030958,6]
[385842814,1758059474388,-400.0,0.00030958,6]
[385842815,1758059474398,-400.0,0.00030958,6]
[385842816,1758059474407,-199.13805726,0.00030958,6]
[385842817,1758059474417,-400.0,0.00030958,6]
[385842818,1758059474426,-400.0,0.00030958,6]
[385842819,1758059474436,-2151.75,0.00030958,6]
[385842820,1758059474446,-581.21,0.00030958,6]
[385842821,1758059474455,-400.0,0.00030958,6]
[385842822,1758059474464,-400.0,0.00030958,6]
[385842823,1758059474475,-400.0,0.00030958,6]
[385842824,1758059474484,-400.0,0.00030958,6]
[385842825,1758059474493,-400.0,0.00030958,6]
[385842826,1758059474503,-400.0,0.00030958,6]
[385842827,1758059474512,-400.0,0.00030958,6]
[385842828,1758059474521,-400.0,0.00030958,6]
[385842829,1758059474530,-400.0,0.00030958,6]
[385842830,1758059474540,-400.0,0.00030958,6]
[385842831,1758059474549,-590.85,0.00030958,6]
[385842832,1758059474558,-400.0,0.00030958,6]
[385842833,1758059474567,-576.61,0.00030958,6]
[385842834,1758059474577,-400.0,0.00030958,6]
[385842835,1758059474586,-400.0,0.00030958,6]
[385842836,1758059474596,-400.0,0.00030958,6]
[385842837,1758059474605,-400.0,0.00030958,6]
[385842838,1758059474614,-400.0,0.00030958,6]
[385842839,1758059474624,-616.64,0.00030958,6]
[385842840,1758059474633,-400.0,0.00030958,6]
[385842841,1758059474642,-400.0,0.00030958,6]
[385842842,1758059474651,-862.95,0.00030958,6]